[Event "7th Leer Open-A 2024"]
[Site "Leer"]
[Date "2024.10.31"]
[Round "2.53"]
[White "Thomas, Jeremy"]
[Black "Gerhardt, Dirk"]
[Result "1-0"]
[ECO "B15"]
[WhiteElo "1948"]
[BlackElo "1832"]
[Annotator "RC"]
[PlyCount "77"]
[EventDate "2024.10.14"]
[EventType "swiss"]
[EventCountry "GER"]
[SourceTitle "playchess.com"]
[Source "ChessBase"]
[SourceQuality "1"]
[TimeControl "40/5400+30:900+30"]

1. e4 {[%emt 0:00:03]} g6 {[%emt 0:00:07]} 2. d4 {[%emt 0:00:04]} Bg7 {[%emt 0:00:20]} 3. Nc3 {[%emt 0:00:18]} c6 {[%emt 0:00:38]} 4. Be3 {[%emt 0:00:18]} d5 {[%emt 0:00:09]} 5. e5 {[%emt 0:00:56]} Nd7 {[%emt 0:01:34]} 6. Nf3 {[%emt 0:00:51]} b5 {[%emt 0:03:08]} 7. Bd3 {[%emt 0:12:01]} Nb6 {[%emt 0:01:02]} 8. b3 {[%emt 0:09:12]} Bg4 {[%emt 0:00:19]} 9. h3 {[%emt 0:00:32]} Bxf3 {[%emt 0:03:07]} 10. Qxf3 {[%emt 0:00:02]} e6 {[%emt 0:01:03]} 11. O-O {[%emt 0:01:55]} Ne7 {[%emt 0:03:13]} 12. Bg5 {[%emt 0:04:03]} b4 {[%emt 0:07:24]} 13. Nd1 {[%emt 0:01:33]} Nd7 {[%emt 0:01:45]} 14. Ne3 {[%emt 0:03:31]} c5 {[%emt 0:02:15]} 15. Bb5 {[%emt 0:03:17]} O-O {[%emt 0:04:50]} 16. Ng4 {[%emt 0:01:09]} Nb8 {[%emt 0:06:50]} 17. Bf6 {[%emt 0:03:38]} h5 {[%emt 0:04:16]} 18. Nh2 {[%emt 0:11:24]} Bxf6 {[%emt 0:06:21]} 19. Qxf6 {[%emt 0:00:44]} Nf5 {[%emt 0:08:36]} 20. Qxd8 {[%emt 0:03:38]} Rxd8 {[%emt 0:01:22]} 21. Nf3 {[%emt 0:03:48]} a6 {[%emt 0:05:01]} 22. Ba4 {[%emt 0:01:45]} Rc8 {[%emt 0:03:23]} 23. dxc5 {[%emt 0:01:40]} Rxc5 {[%emt 0:00:12]} 24. Rfc1 {[%emt 0:03:15]} Ra7 {[%emt 0:00:14]} 25. a3 {[%emt 0:01:10]} Rac7 {[%emt 0:04:39]} 26. axb4 {[%emt 0:04:11]} Rxc2 {[%emt 0:00:07]} 27. Rxc2 {[%emt 0:00:17]} Rxc2 {[%emt 0:00:02]} 28. b5 {[%emt 0:00:16]} axb5 {[%emt 0:05:46]} 29. Bxb5 {[%emt 0:00:01]} Rc5 {[%emt 0:00:26]} 30. Bf1 {[%emt 0:03:32]} Nc6 {[%emt 0:01:36]} 31. Ra8+ {[%emt 0:00:17]} Kg7 {[%emt 0:00:51]} 32. Rc8 {[%emt 0:00:15]} Nfe7 {[%emt 0:00:23]} 33. Rc7 {[%emt 0:00:15]} Kf8 {[%emt 0:04:25]} 34. b4 {[%emt 0:01:42]} Rc2 {[%emt 0:00:11]} 35. b5 {[%emt 0:07:51]} Nb4 {[%emt 0:02:14]} 36. Ra7 {[%emt 0:01:23]} Rb2 {[%emt 0:01:07]} 37. Nd4 {[%emt 0:01:18]} Ke8 {[%emt 0:02:11]} 38. b6 {[%emt 0:01:13]} Kd8 {[%emt 0:04:25]} 39. Bb5 {[%emt 0:03:46]} 1-0

[Event "7th Leer Open-A 2024"]
[Site "Leer"]
[Date "2024.10.31"]
[Round "2.54"]
[White "Goes, Carsten"]
[Black "Meyer, Thorsten"]
[Result "1-0"]
[ECO "B23"]
[WhiteElo "1826"]
[BlackElo "2295"]
[Annotator "RC"]
[PlyCount "47"]
[EventDate "2024.10.14"]
[EventType "swiss"]
[EventCountry "GER"]
[SourceTitle "playchess.com"]
[Source "ChessBase"]
[SourceQuality "1"]
[TimeControl "40/5400+30:900+30"]

1. e4 {[%emt 0:00:04]} d6 {[%emt 0:00:14]} 2. Nc3 {[%emt 0:00:47]} g6 {[%emt 0:00:15]} 3. f4 {[%emt 0:00:41]} Bg7 {[%emt 0:00:48]} 4. Nf3 {[%emt 0:00:32]} c5 {[%emt 0:00:39]} 5. Bb5+ {[%emt 0:00:49]} Bd7 {[%emt 0:00:27]} 6. Bc4 {[%emt 0:00:28]} Nc6 {[%emt 0:03:46]} 7. O-O {[%emt 0:05:31]} e6 {[%emt 0:03:50]} 8. a3 {[%emt 0:03:04]} a6 {[%emt 0:00:14]} 9. d3 {[%emt 0:00:42]} Nge7 {[%emt 0:00:18]} 10. Qe1 {[%emt 0:01:57]} b5 {[%emt 0:04:53]} 11. Ba2 {[%emt 0:02:19]} Nd4 {[%emt 0:08:41]} 12. Nxd4 {[%emt 0:04:22]} cxd4 {[%emt 0:00:44]} 13. Ne2 {[%emt 0:07:49]} Qc7 {[%emt 0:01:06]} 14. c3 {[%emt 0:03:56]} Nc6 {[%emt 0:03:58]} 15. f5 {[%emt 0:05:50]} dxc3 {[%emt 0:07:56]} 16. Nxc3 {[%emt 0:06:11]} Nd8 {[%emt 0:10:42]} 17. Bg5 {[%emt 0:03:09]} Rc8 {[%emt 0:14:25]} 18. Rc1 {[%emt 0:04:23]} Qb6+ {[%emt 0:04:10]} 19. Kh1 {[%emt 0:00:35]} Be5 {[%emt 0:05:02]} 20. Qh4 {[%emt 0:03:53]} h6 {[%emt 0:08:25]} 21. Bxd8 {[%emt 0:02:51]} Qxd8 {[%emt 0:00:02]} 22. Qf2 {[%emt 0:04:56]} Qe7 {[%emt 0:07:57]} 23. d4 {[%emt 0:01:50]} Bf6 {[%emt 0:00:50]} 24. fxe6 {[%emt 0:00:44]} 1-0

[Event "7th Leer Open-A 2024"]
[Site "Leer"]
[Date "2024.10.31"]
[Round "2.55"]
[White "Kutlar, Aras"]
[Black "Cordes, Jule"]
[Result "1-0"]
[ECO "C12"]
[WhiteElo "1759"]
[BlackElo "1945"]
[Annotator "RC"]
[PlyCount "155"]
[EventDate "2024.10.14"]
[EventType "swiss"]
[EventCountry "GER"]
[SourceTitle "playchess.com"]
[Source "ChessBase"]
[SourceQuality "1"]
[TimeControl "40/5400+30:900+30"]

1. e4 {[%emt 0:00:06]} e6 {[%emt 0:02:23]} 2. d4 {[%emt 0:00:39]} d5 {[%emt 0:00:10]} 3. Nc3 {[%emt 0:00:15]} Nf6 {[%emt 0:00:13]} 4. Bg5 {[%emt 0:00:36]} Bb4 {[%emt 0:00:07]} 5. e5 {[%emt 0:01:04]} h6 {[%emt 0:00:07]} 6. exf6 {[%emt 0:00:44]} hxg5 {[%emt 0:00:04]} 7. fxg7 {[%emt 0:00:17]} Rg8 {[%emt 0:00:04]} 8. Qd3 {[%emt 0:02:48]} Qf6 {[%emt 0:04:03]} 9. O-O-O {[%emt 0:00:53]} Nc6 {[%emt 0:01:58]} 10. Nf3 {[%emt 0:03:19]} Bd7 {[%emt 0:01:32]} 11. h4 {[%emt 0:01:45]} g4 {[%emt 0:04:07]} 12. Ng5 {[%emt 0:02:54]} Qxg7 {[%emt 0:04:02]} 13. Nb5 {[%emt 0:01:05]} Ba5 {[%emt 0:07:59]} 14. Qe3 {[%emt 0:08:26]} O-O-O {[%emt 0:18:37]} 15. Be2 {[%emt 0:03:24]} Rde8 {[%emt 0:08:03]} 16. Bxg4 {[%emt 0:01:45]} f6 {[%emt 0:01:00]} 17. Bh5 {[%emt 0:00:20]} Re7 {[%emt 0:09:30]} 18. Nh3 {[%emt 0:01:14]} Qh7 {[%emt 0:12:20]} 19. Nf4 {[%emt 0:13:19]} Nb4 {[%emt 0:02:00]} 20. Na3 {[%emt 0:00:25]} Nxa2+ {[%emt 0:02:17]} 21. Kb1 {[%emt 0:00:15]} Nb4 {[%emt 0:00:29]} 22. Be2 {[%emt 0:01:15]} Bb6 {[%emt 0:01:35]} 23. Qb3 {[%emt 0:01:28]} Nc6 {[%emt 0:01:46]} 24. Qe3 {[%emt 0:04:04]} Qf7 {[%emt 0:05:17]} 25. Bf3 {[%emt 0:04:33]} Kb8 {[%emt 0:01:25]} 26. h5 {[%emt 0:00:54]} Qh7 {[%emt 0:03:07]} 27. Ng6 {[%emt 0:04:50]} Ree8 {[%emt 0:00:31]} 28. Rhe1 {[%emt 0:11:27]} Nd8 {[%emt 0:02:06]} 29. Qf4 {[%emt 0:01:09]} Qg7 {[%emt 0:01:19]} 30. c3 {[%emt 0:01:51]} Nf7 {[%emt 0:00:35]} 31. Qg3 {[%emt 0:03:23]} Ka8 {[%emt 0:00:52]} 32. Nc2 {[%emt 0:00:40]} c6 {[%emt 0:00:31]} 33. Ne3 {[%emt 0:00:55]} Qh7 {[%emt 0:04:48]} 34. Rh1 {[%emt 0:01:19]} Nh8 {[%emt 0:00:56]} 35. Qd6 {[%emt 0:00:46]} Nxg6 {[%emt 0:01:28]} 36. hxg6 {[%emt 0:00:15]} Qxg6+ {[%emt 0:00:01]} 37. Ka2 {[%emt 0:01:19]} Qg7 {[%emt 0:00:10]} 38. Ng4 {[%emt 0:01:02]} Rgf8 {[%emt 0:00:44]} 39. Rh4 {[%emt 0:04:13]} Rh8 {[%emt 0:00:46]} 40. Rxh8 {[%emt 0:00:16]} Rxh8 {[%emt 0:00:10]} 41. Nxf6 {[%emt 0:15:29]} Qxf6 {[%emt 0:05:22]} 42. Qxd7 {[%emt 0:00:00]} e5 {[%emt 0:02:27]} 43. dxe5 {[%emt 0:00:00]} Qxe5 {[%emt 0:00:02]} 44. Rd2 {[%emt 0:00:00]} d4 {[%emt 0:05:34]} 45. Re2 {[%emt 0:00:00]} Qa5+ {[%emt 0:00:16]} 46. Kb3 {[%emt 0:00:00]} Qb5+ {[%emt 0:02:07]} 47. Kc2 {[%emt 0:00:00]} Qa4+ {[%emt 0:00:51]} 48. b3 {[%emt 0:00:00]} Qa2+ {[%emt 0:01:45]} 49. Kd3 {[%emt 0:00:00]} Qa6+ {[%emt 0:01:19]} 50. c4 {[%emt 0:00:00]} Qa5 {[%emt 0:00:59]} 51. Re8+ {[%emt 0:00:00]} Rxe8 {[%emt 0:00:01]} 52. Qxe8+ {[%emt 0:00:00]} Bd8 {[%emt 0:00:01]} 53. Kxd4 {[%emt 0:00:49]} Qd2+ {[%emt 0:00:41]} 54. Kc5 {[%emt 0:00:22]} Qxf2+ {[%emt 0:00:25]} 55. Kd6 {[%emt 0:00:57]} Qd4+ {[%emt 0:00:16]} 56. Ke6 {[%emt 0:00:35]} Kb8 {[%emt 0:01:22]} 57. Qf8 {[%emt 0:01:14]} Kc7 {[%emt 0:00:32]} 58. Qf7+ {[%emt 0:01:00]} Kb6 {[%emt 0:00:30]} 59. Qf5 {[%emt 0:03:36]} Qe3+ {[%emt 0:00:33]} 60. Qe5 {[%emt 0:03:18]} Qh6+ {[%emt 0:00:34]} 61. Kd7 {[%emt 0:01:51]} Qf8 {[%emt 0:00:25]} 62. c5+ {[%emt 0:00:49]} Kb5 {[%emt 0:00:37]} 63. Be2+ {[%emt 0:00:48]} Kb4 {[%emt 0:00:21]} 64. Qd4+ {[%emt 0:00:16]} Ka3 {[%emt 0:00:25]} 65. Qa1+ {[%emt 0:01:19]} Kxb3 {[%emt 0:00:47]} 66. Qb1+ {[%emt 0:00:39]} Ka3 {[%emt 0:00:34]} 67. Qc1+ {[%emt 0:00:11]} Kb3 {[%emt 0:00:26]} 68. Qb1+ {[%emt 0:00:44]} Ka3 {[%emt 0:00:17]} 69. Qd3+ {[%emt 0:00:20]} Kb2 {[%emt 0:00:31]} 70. Qd4+ {[%emt 0:00:24]} Kb3 {[%emt 0:00:44]} 71. Bd1+ {[%emt 0:00:16]} Ka2 {[%emt 0:00:28]} 72. Qa4+ {[%emt 0:01:04]} Kb1 {[%emt 0:00:33]} 73. Qb3+ {[%emt 0:00:24]} Ka1 {[%emt 0:00:06]} 74. Qc3+ {[%emt 0:00:05]} Ka2 {[%emt 0:00:54]} 75. Bb3+ {[%emt 0:00:10]} Ka3 {[%emt 0:00:06]} 76. Bc2+ {[%emt 0:00:14]} Ka2 {[%emt 0:00:11]} 77. Qb3+ {[%emt 0:00:05]} Ka1 {[%emt 0:00:03]} 78. Qb1# {[%emt 0:00:09]} 1-0

[Event "7th Leer Open-A 2024"]
[Site "Leer"]
[Date "2024.10.31"]
[Round "2.56"]
[White "Moeller, Tom"]
[Black "Lehmann, Edwin"]
[Result "1/2-1/2"]
[ECO "A81"]
[WhiteElo "1812"]
[BlackElo "1942"]
[Annotator "RC"]
[PlyCount "104"]
[EventDate "2024.10.14"]
[EventType "swiss"]
[EventCountry "GER"]
[SourceTitle "playchess.com"]
[Source "ChessBase"]
[SourceQuality "1"]
[TimeControl "40/5400+30:900+30"]

1. d4 {[%emt 0:04:07]} f5 {[%emt 0:00:09]} 2. Nc3 {[%emt 0:00:03]} Nf6 {[%emt 0:00:43]} 3. g3 {[%emt 0:01:27]} d6 {[%emt 0:00:45]} 4. Bg2 {[%emt 0:00:22]} g6 {[%emt 0:01:25]} 5. e4 {[%emt 0:01:20]} c6 {[%emt 0:02:18]} 6. Bg5 {[%emt 0:00:59]} Bg7 {[%emt 0:02:29]} 7. Bxf6 {[%emt 0:00:48]} Bxf6 {[%emt 0:01:29]} 8. f4 {[%emt 0:01:13]} fxe4 {[%emt 0:05:59]} 9. Nxe4 {[%emt 0:00:09]} O-O {[%emt 0:01:44]} 10. Nf3 {[%emt 0:01:20]} Bf5 {[%emt 0:03:19]} 11. Nxf6+ {[%emt 0:00:55]} exf6 {[%emt 0:01:38]} 12. O-O {[%emt 0:00:42]} Qd7 {[%emt 0:04:41]} 13. Re1 {[%emt 0:01:04]} Na6 {[%emt 0:02:47]} 14. d5 {[%emt 0:02:39]} c5 {[%emt 0:03:27]} 15. Nd2 {[%emt 0:06:00]} Rae8 {[%emt 0:03:00]} 16. Ne4 {[%emt 0:02:31]} Bxe4 {[%emt 0:02:47]} 17. Rxe4 {[%emt 0:03:40]} Rxe4 {[%emt 0:01:31]} 18. Bxe4 {[%emt 0:02:25]} Re8 {[%emt 0:02:05]} 19. Bd3 {[%emt 0:00:34]} b5 {[%emt 0:05:50]} 20. a4 {[%emt 0:10:45]} c4 {[%emt 0:04:27]} 21. axb5 {[%emt 0:00:09]} Qxb5 {[%emt 0:02:18]} 22. Bf1 {[%emt 0:01:04]} Qc5+ {[%emt 0:02:54]} 23. Kh1 {[%emt 0:00:08]} Nb4 {[%emt 0:03:28]} 24. Qd2 {[%emt 0:01:23]} Nxd5 {[%emt 0:03:32]} 25. Ra5 {[%emt 0:00:27]} c3 {[%emt 0:07:11]} 26. Rxc5 {[%emt 0:05:22]} cxd2 {[%emt 0:00:21]} 27. Rxd5 {[%emt 0:00:04]} Re1 {[%emt 0:01:11]} 28. Rxd2 {[%emt 0:00:04]} Rxf1+ {[%emt 0:00:44]} 29. Kg2 {[%emt 0:00:05]} Re1 {[%emt 0:00:45]} 30. Kf3 {[%emt 0:00:21]} Re6 {[%emt 0:01:33]} 31. f5 {[%emt 0:02:09]} gxf5 {[%emt 0:02:27]} 32. Re2 {[%emt 0:07:49]} Re5 {[%emt 0:01:31]} 33. Rd2 {[%emt 0:01:02]} d5 {[%emt 0:01:50]} 34. Rd4 {[%emt 0:01:21]} Kf7 {[%emt 0:01:18]} 35. Rb4 {[%emt 0:00:28]} a5 {[%emt 0:02:39]} 36. Rb7+ {[%emt 0:00:55]} Kg6 {[%emt 0:04:09]} 37. Ra7 {[%emt 0:00:46]} d4 {[%emt 0:01:20]} 38. Rc7 {[%emt 0:01:04]} h6 {[%emt 0:01:50]} 39. h4 {[%emt 0:04:27]} Rb5 {[%emt 0:04:03]} 40. b3 {[%emt 0:01:33]} d3 {[%emt 0:01:45]} 41. cxd3 {[%emt 0:15:22]} Rxb3 {[%emt 0:15:17]} 42. Ke3 {[%emt 0:01:21]} a4 {[%emt 0:01:15]} 43. Ra7 {[%emt 0:00:13]} a3 {[%emt 0:01:11]} 44. Ra5 {[%emt 0:00:48]} h5 {[%emt 0:05:12]} 45. Ra4 {[%emt 0:04:01]} Kf7 {[%emt 0:02:20]} 46. Kd4 {[%emt 0:00:36]} Rb2 {[%emt 0:01:06]} 47. Rxa3 {[%emt 0:03:52]} Rg2 {[%emt 0:00:27]} 48. Kc5 {[%emt 0:00:54]} Rxg3 {[%emt 0:00:38]} 49. Ra7+ {[%emt 0:00:16]} Ke6 {[%emt 0:01:10]} 50. Ra6+ {[%emt 0:00:12]} Ke7 {[%emt 0:00:00]} 51. Ra7+ {[%emt 0:00:00]} Ke6 {[%emt 0:00:00]} 52. Ra6+ {[%emt 0:00:00]} Ke7 {[%emt 0:03:32]} 1/2-1/2

[Event "7th Leer Open-A 2024"]
[Site "Leer"]
[Date "2024.10.31"]
[Round "2.57"]
[White "Bauer, Timon"]
[Black "Haertel, Leon"]
[Result "1-0"]
[ECO "C00"]
[WhiteElo "1938"]
[BlackElo "1816"]
[Annotator "RC"]
[PlyCount "53"]
[EventDate "2024.10.14"]
[EventType "swiss"]
[EventCountry "GER"]
[SourceTitle "playchess.com"]
[Source "ChessBase"]
[SourceQuality "1"]
[TimeControl "40/5400+30:900+30"]

1. e4 {[%emt 0:01:03]} c5 {[%emt 0:00:11]} 2. Nf3 {[%emt 0:00:10]} Nc6 {[%emt 0:00:11]} 3. d3 {[%emt 0:00:10]} e6 {[%emt 0:02:37]} 4. g3 {[%emt 0:00:12]} Nf6 {[%emt 0:00:56]} 5. Bg2 {[%emt 0:00:18]} d5 {[%emt 0:00:44]} 6. Qe2 {[%emt 0:00:12]} Be7 {[%emt 0:00:39]} 7. O-O {[%emt 0:00:23]} O-O {[%emt 0:10:03]} 8. e5 {[%emt 0:01:49]} Nd7 {[%emt 0:00:40]} 9. c4 {[%emt 0:00:25]} dxc4 {[%emt 0:03:44]} 10. dxc4 {[%emt 0:01:20]} Qc7 {[%emt 0:01:09]} 11. Bf4 {[%emt 0:00:27]} b6 {[%emt 0:02:19]} 12. Nc3 {[%emt 0:00:28]} a6 {[%emt 0:01:56]} 13. Rad1 {[%emt 0:02:32]} Bb7 {[%emt 0:00:48]} 14. Nd5 {[%emt 0:02:47]} Qc8 {[%emt 0:08:12]} 15. Nxe7+ {[%emt 0:01:26]} Nxe7 {[%emt 0:00:16]} 16. Qd3 {[%emt 0:01:28]} Rd8 {[%emt 0:02:24]} 17. Bg5 {[%emt 0:03:30]} f6 {[%emt 0:03:26]} 18. exf6 {[%emt 0:04:10]} gxf6 {[%emt 0:00:26]} 19. Qe3 {[%emt 0:08:56]} Kf7 {[%emt 0:08:27]} 20. Bh3 {[%emt 0:03:39]} Qc6 {[%emt 0:04:57]} 21. Bxf6 {[%emt 0:11:21]} Qxf3 {[%emt 0:18:35]} 22. Qxe6+ {[%emt 0:03:29]} Kg6 {[%emt 0:01:04]} 23. Bxe7+ {[%emt 0:03:04]} Nf6 {[%emt 0:02:18]} 24. Qxf6+ {[%emt 0:01:29]} Qxf6 {[%emt 0:00:36]} 25. Bxf6 {[%emt 0:00:02]} Kxf6 {[%emt 0:00:20]} 26. Bg2 {[%emt 0:00:19]} Bxg2 {[%emt 0:00:22]} 27. Kxg2 {[%emt 0:00:06]} 1-0